[Event "Titled Tuesday Blitz June 07 Early 2022"]
[White "Babazada, Khazar"]
[Black "Keller, Peter"]
[WhiteFideId "13413554"]
[BlackFideId "1272105"]
[WhiteElo "2406"]
[BlackElo "2275"]
[Result "1-0"]
[Round "01"]
[TimeControl "180+1"]
[Date "2022.06.08"]
[WhiteClock "0:00:07"]
[BlackClock "0:00:27"]

1. e4 {[%clk 0:03:00]}  e5 {[%clk 0:03:00]} 2. Nf3 {[%clk 0:02:55]}  Nc6 {[%clk 0:02:59]} 3. Bb5 {[%clk 0:02:54]}  Nf6 {[%clk 0:03:00]} 4. O-O {[%clk 0:02:47]}  Nxe4 {[%clk 0:02:59]} 5. d4 {[%clk 0:02:22]}  Nd6 {[%clk 0:02:59]} 6. Ba4 {[%clk 0:02:22]}  exd4 {[%clk 0:02:49]} 7. Nxd4 {[%clk 0:01:44]}  Be7 {[%clk 0:02:33]} 8. Nc3 {[%clk 0:01:44]}  O-O {[%clk 0:02:32]} 9. Nd5 {[%clk 0:01:43]}  Nxd4 {[%clk 0:02:32]} 10. Qxd4 {[%clk 0:01:41]}  Nf5 {[%clk 0:02:32]} 11. Qd3 {[%clk 0:01:04]}  d6 {[%clk 0:02:28]} 12. c3 {[%clk 0:01:05]}  c6 {[%clk 0:02:10]} 13. Nxe7+ {[%clk 0:00:59]}  Nxe7 {[%clk 0:02:11]} 14. Bg5 {[%clk 0:00:52]}  Bf5 {[%clk 0:01:50]} 15. Qd2 {[%clk 0:00:46]}  Qd7 {[%clk 0:01:36]} 16. Rad1 {[%clk 0:00:42]}  Rad8 {[%clk 0:01:34]} 17. c4 {[%clk 0:00:41]}  Rfe8 {[%clk 0:01:25]} 18. h3 {[%clk 0:00:36]}  Kh8 {[%clk 0:01:19]} 19. Rfe1 {[%clk 0:00:36]}  f6 {[%clk 0:01:18]} 20. Bf4 {[%clk 0:00:33]}  d5 {[%clk 0:01:16]} 21. c5 {[%clk 0:00:31]}  Ng6 {[%clk 0:01:15]} 22. Bd6 {[%clk 0:00:31]}  Rxe1+ {[%clk 0:01:09]} 23. Rxe1 {[%clk 0:00:30]}  Re8 {[%clk 0:01:10]} 24. Bd1 {[%clk 0:00:24]}  Rxe1+ {[%clk 0:01:04]} 25. Qxe1 {[%clk 0:00:25]}  Qe6 {[%clk 0:01:04]} 26. Qa5 {[%clk 0:00:22]}  h6 {[%clk 0:00:54]} 27. Bh5 {[%clk 0:00:18]}  a6 {[%clk 0:00:47]} 28. Qb4 {[%clk 0:00:14]}  Qd7 {[%clk 0:00:39]} 29. b3 {[%clk 0:00:14]}  Kh7 {[%clk 0:00:38]} 30. Qd4 {[%clk 0:00:12]}  Ne7 {[%clk 0:00:34]} 31. Qe3 {[%clk 0:00:10]}  Bg6 {[%clk 0:00:28]} 32. Qxe7 {[%clk 0:00:06]}  Qxe7 {[%clk 0:00:28]} 33. Bxg6+ {[%clk 0:00:06]}  Kxg6 {[%clk 0:00:27]} 34. Bxe7 {[%clk 0:00:07]} 1-0


[Site "https://www.chess.com"]

[Event "Titled Tuesday Blitz June 07 Early 2022"]
[White "Bethke, Richard"]
[Black "Matlakov, Maxim"]
[WhiteFideId "12959243"]
[BlackFideId "4168003"]
[WhiteElo "2512"]
[BlackElo "2669"]
[Result "0-1"]
[Round "01"]
[TimeControl "180+1"]
[Date "2022.06.07"]
[WhiteClock "0:00:52"]
[BlackClock "0:01:52"]

1. e4 {[%clk 0:02:58]}  e5 {[%clk 0:02:59]} 2. Nf3 {[%clk 0:02:58]}  Nc6 {[%clk 0:02:59]} 3. Bc4 {[%clk 0:02:58]}  Bc5 {[%clk 0:02:59]} 4. O-O {[%clk 0:02:57]}  Nf6 {[%clk 0:02:59]} 5. d3 {[%clk 0:02:57]}  d6 {[%clk 0:02:59]} 6. c3 {[%clk 0:02:55]}  h6 {[%clk 0:02:59]} 7. Re1 {[%clk 0:02:53]}  a6 {[%clk 0:02:59]} 8. d4 {[%clk 0:02:51]}  Ba7 {[%clk 0:02:58]} 9. dxe5 {[%clk 0:02:49]}  Ng4 {[%clk 0:02:43]} 10. Nd4 {[%clk 0:02:19]}  Qh4 {[%clk 0:02:34]} 11. h3 {[%clk 0:01:39]}  Qxf2+ {[%clk 0:02:25]} 12. Kh1 {[%clk 0:01:39]}  Ncxe5 {[%clk 0:02:10]} 13. Be2 {[%clk 0:01:20]}  Qh4 {[%clk 0:01:55]} 14. Qa4+ {[%clk 0:00:51]}  Bd7 {[%clk 0:01:53]} 15. Qb3 {[%clk 0:00:52]}  Qxe1+ {[%clk 0:01:52]} 0-1


[Site "https://www.chess.com"]

[Event "Titled Tuesday Blitz June 07 Early 2022"]
[White "Bharath Subramaniyam H"]
[Black "Perez Leiva, Jerzy Jesus"]
[WhiteFideId "46634827"]
[BlackFideId "3524337"]
[WhiteElo "2242"]
[BlackElo "2287"]
[Result "1-0"]
[Round "01"]
[TimeControl "180+1"]
[Date "2022.06.07"]
[WhiteClock "0:01:33"]
[BlackClock "0:00:15"]

1. d4 {[%clk 0:02:59]}  Nf6 {[%clk 0:02:57]} 2. Nf3 {[%clk 0:02:59]}  e6 {[%clk 0:02:54]} 3. Bf4 {[%clk 0:02:58]}  d5 {[%clk 0:02:54]} 4. c3 {[%clk 0:02:58]}  c5 {[%clk 0:02:53]} 5. e3 {[%clk 0:02:58]}  Bd6 {[%clk 0:02:34]} 6. Nbd2 {[%clk 0:02:57]}  Qc7 {[%clk 0:02:33]} 7. Ne5 {[%clk 0:02:54]}  Nbd7 {[%clk 0:02:25]} 8. Ndf3 {[%clk 0:02:53]}  Ne4 {[%clk 0:01:54]} 9. Bd3 {[%clk 0:02:50]}  f6 {[%clk 0:01:49]} 10. Nxd7 {[%clk 0:02:49]}  Bxd7 {[%clk 0:01:47]} 11. Bxd6 {[%clk 0:02:43]}  Nxd6 {[%clk 0:01:44]} 12. Qc2 {[%clk 0:02:32]}  O-O-O {[%clk 0:01:32]} 13. O-O {[%clk 0:02:28]}  c4 {[%clk 0:01:28]} 14. Be2 {[%clk 0:02:27]}  g5 {[%clk 0:01:27]} 15. b3 {[%clk 0:02:24]}  Kb8 {[%clk 0:01:22]} 16. Nd2 {[%clk 0:02:23]}  Rc8 {[%clk 0:01:13]} 17. bxc4 {[%clk 0:02:22]}  dxc4 {[%clk 0:01:12]} 18. e4 {[%clk 0:02:21]}  Qa5 {[%clk 0:01:08]} 19. Rab1 {[%clk 0:02:19]}  Ka8 {[%clk 0:00:55]} 20. Rb4 {[%clk 0:02:17]}  e5 {[%clk 0:00:50]} 21. dxe5 {[%clk 0:02:12]}  Qxe5 {[%clk 0:00:48]} 22. Nxc4 {[%clk 0:02:05]}  Nxc4 {[%clk 0:00:28]} 23. Bxc4 {[%clk 0:01:56]}  a5 {[%clk 0:00:20]} 24. Ra4 {[%clk 0:01:40]}  Bxa4 {[%clk 0:00:19]} 25. Qxa4 {[%clk 0:01:40]}  Qxe4 {[%clk 0:00:17]} 26. Qxa5+ {[%clk 0:01:40]}  Kb8 {[%clk 0:00:18]} 27. Bd5 {[%clk 0:01:39]}  Qc2 {[%clk 0:00:14]} 28. Qb6 {[%clk 0:01:35]}  Rc7 {[%clk 0:00:15]} 29. Qxf6 {[%clk 0:01:35]}  Qxc3 {[%clk 0:00:15]} 30. Qxg5 {[%clk 0:01:34]}  Rd8 {[%clk 0:00:15]} 31. Qxd8+ {[%clk 0:01:33]} 1-0


[Site "https://www.chess.com"]

[Event "Titled Tuesday Blitz June 07 Early 2022"]
[White "Bluebaum, Matthias"]
[Black "Cremisi, Daniel"]
[WhiteFideId "24651516"]
[BlackFideId "2089882"]
[WhiteElo "2556"]
[BlackElo "2172"]
[Result "1-0"]
[Round "01"]
[TimeControl "180+1"]
[Date "2022.06.07"]
[WhiteClock "0:01:31"]
[BlackClock "0:01:50"]

1. d4 {[%clk 0:03:00]}  e6 {[%clk 0:02:43]} 2. c4 {[%clk 0:03:01]}  Nf6 {[%clk 0:02:43]} 3. Nc3 {[%clk 0:03:01]}  d5 {[%clk 0:02:42]} 4. cxd5 {[%clk 0:03:00]}  exd5 {[%clk 0:02:43]} 5. Bg5 {[%clk 0:03:01]}  c6 {[%clk 0:02:43]} 6. e3 {[%clk 0:03:02]}  Be7 {[%clk 0:02:43]} 7. Bd3 {[%clk 0:03:02]}  O-O {[%clk 0:02:43]} 8. h3 {[%clk 0:03:02]}  Re8 {[%clk 0:02:43]} 9. Qc2 {[%clk 0:03:01]}  h6 {[%clk 0:02:43]} 10. Bf4 {[%clk 0:03:02]}  Nbd7 {[%clk 0:02:43]} 11. Nf3 {[%clk 0:03:00]}  Nf8 {[%clk 0:02:43]} 12. O-O-O {[%clk 0:03:00]}  b6 {[%clk 0:02:43]} 13. g4 {[%clk 0:03:00]}  N6d7 {[%clk 0:02:36]} 14. Rdg1 {[%clk 0:02:59]}  Ne6 {[%clk 0:02:35]} 15. h4 {[%clk 0:02:51]}  Nxf4 {[%clk 0:02:33]} 16. exf4 {[%clk 0:02:52]}  Bd6 {[%clk 0:02:34]} 17. Ne2 {[%clk 0:02:46]}  c5 {[%clk 0:02:33]} 18. g5 {[%clk 0:02:44]}  h5 {[%clk 0:02:33]} 19. Ne5 {[%clk 0:02:38]}  Bxe5 {[%clk 0:02:28]} 20. dxe5 {[%clk 0:02:24]}  c4 {[%clk 0:02:23]} 21. Bh7+ {[%clk 0:02:23]}  Kh8 {[%clk 0:02:23]} 22. Nd4 {[%clk 0:02:08]}  Nc5 {[%clk 0:02:21]} 23. Qe2 {[%clk 0:01:53]}  Kxh7 {[%clk 0:02:16]} 24. Qxh5+ {[%clk 0:01:53]}  Kg8 {[%clk 0:02:16]} 25. g6 {[%clk 0:01:54]}  fxg6 {[%clk 0:02:16]} 26. Rxg6 {[%clk 0:01:53]}  Nd3+ {[%clk 0:02:14]} 27. Kb1 {[%clk 0:01:53]}  Qe7 {[%clk 0:01:51]} 28. Rhg1 {[%clk 0:01:33]}  Nxf4 {[%clk 0:01:50]} 29. Rxg7+ {[%clk 0:01:32]}  Qxg7 {[%clk 0:01:50]} 30. Qxe8+ {[%clk 0:01:31]} 1-0


[Site "https://www.chess.com"]

[Event "Titled Tuesday Blitz June 07 Early 2022"]
[White "Cervantes Landeiro, Thalia"]
[Black "Le, Tuan Minh"]
[WhiteFideId "3520498"]
[BlackFideId "12401153"]
[WhiteElo "2042"]
[BlackElo "2530"]
[Result "0-1"]
[Round "01"]
[TimeControl "180+1"]
[Date "2022.06.07"]
[WhiteClock "0:00:03"]
[BlackClock "0:00:23"]

1. d4 {[%clk 0:03:00]}  d5 {[%clk 0:02:56]} 2. c4 {[%clk 0:03:00]}  c6 {[%clk 0:02:56]} 3. Nf3 {[%clk 0:03:00]}  Nf6 {[%clk 0:02:50]} 4. e3 {[%clk 0:02:59]}  Bf5 {[%clk 0:02:49]} 5. Nc3 {[%clk 0:02:58]}  e6 {[%clk 0:02:48]} 6. Nh4 {[%clk 0:02:58]}  Be4 {[%clk 0:02:48]} 7. Qb3 {[%clk 0:02:53]}  Qc7 {[%clk 0:02:46]} 8. f3 {[%clk 0:02:49]}  Bg6 {[%clk 0:02:46]} 9. Bd2 {[%clk 0:02:46]}  Be7 {[%clk 0:02:46]} 10. Nxg6 {[%clk 0:02:45]}  hxg6 {[%clk 0:02:46]} 11. O-O-O {[%clk 0:02:45]}  dxc4 {[%clk 0:02:45]} 12. Bxc4 {[%clk 0:02:46]}  b5 {[%clk 0:02:45]} 13. Be2 {[%clk 0:02:43]}  a6 {[%clk 0:02:45]} 14. g3 {[%clk 0:02:28]}  Nbd7 {[%clk 0:02:42]} 15. Kb1 {[%clk 0:02:27]}  c5 {[%clk 0:02:38]} 16. Ne4 {[%clk 0:02:23]}  O-O {[%clk 0:02:22]} 17. Nxc5 {[%clk 0:02:07]}  Nxc5 {[%clk 0:02:20]} 18. dxc5 {[%clk 0:02:07]}  Bxc5 {[%clk 0:02:21]} 19. Rc1 {[%clk 0:02:06]}  Qb6 {[%clk 0:02:20]} 20. Rxc5 {[%clk 0:02:00]}  Qxc5 {[%clk 0:02:20]} 21. Bb4 {[%clk 0:02:01]}  Qf5+ {[%clk 0:02:15]} 22. e4 {[%clk 0:02:00]}  Nxe4 {[%clk 0:02:13]} 23. Qc2 {[%clk 0:01:06]}  Nf6 {[%clk 0:01:45]} 24. Qxf5 {[%clk 0:00:58]}  gxf5 {[%clk 0:01:43]} 25. Bxf8 {[%clk 0:00:58]}  Kxf8 {[%clk 0:01:43]} 26. Rc1 {[%clk 0:00:49]}  Nd5 {[%clk 0:01:39]} 27. Rc6 {[%clk 0:00:48]}  Ke7 {[%clk 0:01:38]} 28. f4 {[%clk 0:00:46]}  Kd7 {[%clk 0:01:36]} 29. Rc1 {[%clk 0:00:43]}  Rh8 {[%clk 0:01:36]} 30. h4 {[%clk 0:00:42]}  Rc8 {[%clk 0:01:33]} 31. Rd1 {[%clk 0:00:42]}  Ke7 {[%clk 0:01:33]} 32. Bf3 {[%clk 0:00:41]}  Rc5 {[%clk 0:01:26]} 33. a3 {[%clk 0:00:39]}  a5 {[%clk 0:01:20]} 34. h5 {[%clk 0:00:34]}  a4 {[%clk 0:01:13]} 35. Rd3 {[%clk 0:00:25]}  Kd6 {[%clk 0:01:06]} 36. Rd1 {[%clk 0:00:19]}  Rc4 {[%clk 0:00:58]} 37. Be2 {[%clk 0:00:18]}  Rc5 {[%clk 0:00:57]} 38. Bf3 {[%clk 0:00:18]}  Kd7 {[%clk 0:00:57]} 39. Ka2 {[%clk 0:00:17]}  Ke7 {[%clk 0:00:54]} 40. Rd2 {[%clk 0:00:15]}  Kf6 {[%clk 0:00:30]} 41. Kb1 {[%clk 0:00:15]}  g5 {[%clk 0:00:27]} 42. Rh2 {[%clk 0:00:12]}  gxf4 {[%clk 0:00:23]} 43. h6 {[%clk 0:00:12]}  Rc8 {[%clk 0:00:21]} 44. Bxd5 {[%clk 0:00:12]}  fxg3 {[%clk 0:00:20]} 45. Rg2 {[%clk 0:00:08]}  exd5 {[%clk 0:00:20]} 46. Rxg3 {[%clk 0:00:09]}  Rh8 {[%clk 0:00:20]} 47. Rd3 {[%clk 0:00:07]}  Ke5 {[%clk 0:00:19]} 48. Re3+ {[%clk 0:00:07]}  Kd4 {[%clk 0:00:20]} 49. Rh3 {[%clk 0:00:06]}  f4 {[%clk 0:00:20]} 50. Kc2 {[%clk 0:00:06]}  Ke4 {[%clk 0:00:20]} 51. Kd2 {[%clk 0:00:07]}  Kf5 {[%clk 0:00:20]} 52. Ke2 {[%clk 0:00:06]}  Kg6 {[%clk 0:00:20]} 53. Rd3 {[%clk 0:00:05]}  Rxh6 {[%clk 0:00:20]} 54. Rxd5 {[%clk 0:00:05]}  Rh2+ {[%clk 0:00:21]} 55. Kf3 {[%clk 0:00:06]}  Rxb2 {[%clk 0:00:21]} 56. Kxf4 {[%clk 0:00:06]}  Rb3 {[%clk 0:00:22]} 57. Rd6+ {[%clk 0:00:06]}  f6 {[%clk 0:00:22]} 58. Rb6 {[%clk 0:00:07]}  Rxa3 {[%clk 0:00:20]} 59. Rxb5 {[%clk 0:00:07]}  Ra1 {[%clk 0:00:21]} 60. Ra5 {[%clk 0:00:07]}  a3 {[%clk 0:00:21]} 61. Kg3 {[%clk 0:00:08]}  a2 {[%clk 0:00:21]} 62. Kg2 {[%clk 0:00:08]}  f5 {[%clk 0:00:22]} 63. Ra6+ {[%clk 0:00:08]}  Kg7 {[%clk 0:00:22]} 64. Ra8 {[%clk 0:00:09]}  f4 {[%clk 0:00:22]} 65. Ra7+ {[%clk 0:00:06]}  Kf8 {[%clk 0:00:22]} 66. Ra8+ {[%clk 0:00:06]}  Ke7 {[%clk 0:00:22]} 67. Ra7+ {[%clk 0:00:06]}  Kd6 {[%clk 0:00:23]} 68. Ra6+ {[%clk 0:00:07]}  Kc5 {[%clk 0:00:23]} 69. Ra4 {[%clk 0:00:06]}  f3+ {[%clk 0:00:23]} 70. Kh2 {[%clk 0:00:03]}  f2 {[%clk 0:00:23]} 0-1


[Site "https://www.chess.com"]

[Event "Titled Tuesday Blitz June 07 Early 2022"]
[White "Chigaev, Maksim"]
[Black "Shtyka, Sergey"]
[WhiteFideId "4108116"]
[BlackFideId "4138465"]
[WhiteElo "2457"]
[BlackElo "2014"]
[Result "1-0"]
[Round "01"]
[TimeControl "180+1"]
[Date "2022.06.07"]
[WhiteClock "0:00:25"]
[BlackClock "0:00:14"]

1. c4 {[%clk 0:02:59]}  c5 {[%clk 0:02:58]} 2. Nc3 {[%clk 0:02:58]}  Nc6 {[%clk 0:02:57]} 3. Nf3 {[%clk 0:02:58]}  g6 {[%clk 0:02:58]} 4. e3 {[%clk 0:02:57]}  Bg7 {[%clk 0:02:57]} 5. d4 {[%clk 0:02:57]}  cxd4 {[%clk 0:02:57]} 6. exd4 {[%clk 0:02:58]}  d6 {[%clk 0:02:57]} 7. d5 {[%clk 0:02:56]}  Ne5 {[%clk 0:02:57]} 8. Nxe5 {[%clk 0:02:56]}  Bxe5 {[%clk 0:02:58]} 9. Be2 {[%clk 0:02:57]}  Bg7 {[%clk 0:02:57]} 10. O-O {[%clk 0:02:56]}  Nf6 {[%clk 0:02:58]} 11. Re1 {[%clk 0:02:55]}  O-O {[%clk 0:02:58]} 12. Bg5 {[%clk 0:02:56]}  Bf5 {[%clk 0:02:54]} 13. Bf3 {[%clk 0:02:40]}  Rc8 {[%clk 0:02:50]} 14. b3 {[%clk 0:02:36]}  a6 {[%clk 0:02:17]} 15. Rc1 {[%clk 0:02:31]}  Re8 {[%clk 0:02:16]} 16. h3 {[%clk 0:02:28]}  Qa5 {[%clk 0:02:15]} 17. a4 {[%clk 0:02:14]}  Nd7 {[%clk 0:01:46]} 18. Bd2 {[%clk 0:02:09]}  Nc5 {[%clk 0:01:22]} 19. Ne4 {[%clk 0:01:52]}  Qb6 {[%clk 0:01:07]} 20. Nxc5 {[%clk 0:01:52]}  Qxc5 {[%clk 0:01:05]} 21. Be4 {[%clk 0:01:15]}  Bxe4 {[%clk 0:00:54]} 22. Rxe4 {[%clk 0:01:15]}  b5 {[%clk 0:00:46]} 23. b4 {[%clk 0:01:09]}  Qb6 {[%clk 0:00:40]} 24. cxb5 {[%clk 0:00:57]}  Rxc1 {[%clk 0:00:36]} 25. Qxc1 {[%clk 0:00:48]}  axb5 {[%clk 0:00:36]} 26. Qc6 {[%clk 0:00:38]}  Rb8 {[%clk 0:00:28]} 27. Rxe7 {[%clk 0:00:29]}  Qd4 {[%clk 0:00:20]} 28. Re8+ {[%clk 0:00:24]}  Rxe8 {[%clk 0:00:17]} 29. Qxe8+ {[%clk 0:00:25]}  Bf8 {[%clk 0:00:18]} 30. Bh6 {[%clk 0:00:26]}  Qa1+ {[%clk 0:00:12]} 31. Kh2 {[%clk 0:00:25]}  Qe5+ {[%clk 0:00:13]} 32. Qxe5 {[%clk 0:00:26]}  dxe5 {[%clk 0:00:13]} 33. Bxf8 {[%clk 0:00:26]}  Kxf8 {[%clk 0:00:14]} 34. a5 {[%clk 0:00:25]} 1-0


[Site "https://www.chess.com"]

[Event "Titled Tuesday Blitz June 07 Early 2022"]
[White "Demchenko, Anton"]
[Black "Hosseinzadeh, Nima"]
[WhiteFideId "4160258"]
[BlackFideId "12505323"]
[WhiteElo "2539"]
[BlackElo "2066"]
[Result "1-0"]
[Round "01"]
[TimeControl "180+1"]
[Date "2022.06.07"]
[WhiteClock "0:00:52"]
[BlackClock "0:00:02"]

1. e4 {[%clk 0:03:00]}  e5 {[%clk 0:02:59]} 2. Nf3 {[%clk 0:03:01]}  Nc6 {[%clk 0:02:59]} 3. Bc4 {[%clk 0:03:01]}  Bc5 {[%clk 0:03:00]} 4. d3 {[%clk 0:03:02]}  Nf6 {[%clk 0:03:00]} 5. Bg5 {[%clk 0:03:02]}  h6 {[%clk 0:03:00]} 6. Bh4 {[%clk 0:03:02]}  d6 {[%clk 0:03:00]} 7. c3 {[%clk 0:03:02]}  a6 {[%clk 0:02:58]} 8. Nbd2 {[%clk 0:03:01]}  Qe7 {[%clk 0:02:52]} 9. O-O {[%clk 0:03:00]}  g5 {[%clk 0:02:50]} 10. Bg3 {[%clk 0:03:00]}  Nh7 {[%clk 0:02:48]} 11. d4 {[%clk 0:02:57]}  Ba7 {[%clk 0:02:43]} 12. dxe5 {[%clk 0:02:52]}  dxe5 {[%clk 0:02:35]} 13. Bd5 {[%clk 0:02:53]}  f6 {[%clk 0:02:27]} 14. Nc4 {[%clk 0:02:51]}  Bd7 {[%clk 0:02:22]} 15. Ne3 {[%clk 0:02:44]}  O-O-O {[%clk 0:02:13]} 16. Qe2 {[%clk 0:02:36]}  h5 {[%clk 0:01:36]} 17. h4 {[%clk 0:02:35]}  g4 {[%clk 0:01:24]} 18. Ne1 {[%clk 0:02:20]}  Nf8 {[%clk 0:01:13]} 19. Nd3 {[%clk 0:02:15]}  Ng6 {[%clk 0:01:04]} 20. Rad1 {[%clk 0:02:02]}  Kb8 {[%clk 0:00:39]} 21. b4 {[%clk 0:02:00]}  f5 {[%clk 0:00:16]} 22. Nxf5 {[%clk 0:01:52]}  Bxf5 {[%clk 0:00:16]} 23. exf5 {[%clk 0:01:53]}  Nxh4 {[%clk 0:00:16]} 24. Bxc6 {[%clk 0:01:53]}  Nxf5 {[%clk 0:00:13]} 25. Qxe5 {[%clk 0:01:49]}  Qxe5 {[%clk 0:00:06]} 26. Bxe5 {[%clk 0:01:50]}  bxc6 {[%clk 0:00:07]} 27. Bxh8 {[%clk 0:01:49]}  Rxh8 {[%clk 0:00:08]} 28. Ne5 {[%clk 0:01:44]}  g3 {[%clk 0:00:07]} 29. Nxc6+ {[%clk 0:01:44]}  Kb7 {[%clk 0:00:08]} 30. Nxa7 {[%clk 0:01:44]}  Kxa7 {[%clk 0:00:08]} 31. Rd5 {[%clk 0:01:37]}  gxf2+ {[%clk 0:00:06]} 32. Rxf2 {[%clk 0:01:38]}  Nd6 {[%clk 0:00:07]} 33. Re2 {[%clk 0:01:33]}  Kb6 {[%clk 0:00:07]} 34. a4 {[%clk 0:01:30]}  h4 {[%clk 0:00:07]} 35. Re7 {[%clk 0:01:27]}  h3 {[%clk 0:00:07]} 36. a5+ {[%clk 0:01:25]}  Kc6 {[%clk 0:00:07]} 37. Rc5+ {[%clk 0:01:25]}  Kb7 {[%clk 0:00:06]} 38. Rcxc7+ {[%clk 0:01:26]}  Kb8 {[%clk 0:00:06]} 39. gxh3 {[%clk 0:01:26]}  Rxh3 {[%clk 0:00:06]} 40. Rcd7 {[%clk 0:01:26]}  Nc8 {[%clk 0:00:05]} 41. Re8 {[%clk 0:01:25]}  Rxc3 {[%clk 0:00:04]} 42. Kf2 {[%clk 0:01:19]}  Rc4 {[%clk 0:00:04]} 43. Rdd8 {[%clk 0:01:15]}  Kb7 {[%clk 0:00:04]} 44. Ke3 {[%clk 0:01:12]}  Rc3+ {[%clk 0:00:03]} 45. Kd4 {[%clk 0:01:10]}  Rc7 {[%clk 0:00:04]} 46. b5 {[%clk 0:00:55]}  axb5 {[%clk 0:00:04]} 47. a6+ {[%clk 0:00:55]}  Kxa6 {[%clk 0:00:02]} 48. Rxc8 {[%clk 0:00:55]}  Rd7+ {[%clk 0:00:03]} 49. Kc5 {[%clk 0:00:55]}  Ra7 {[%clk 0:00:02]} 50. Rc6+ {[%clk 0:00:53]}  Ka5 {[%clk 0:00:02]} 51. Re1 {[%clk 0:00:52]}  b4 {[%clk 0:00:02]} 52. Ra1# {[%clk 0:00:52]} 1-0


[Site "https://www.chess.com"]

[Event "Titled Tuesday Blitz June 07 Early 2022"]
[White "Drygalov, Andrey"]
[Black "Dounis, Alexandros"]
[WhiteFideId "24171735"]
[BlackFideId "4213238"]
[WhiteElo "2540"]
[BlackElo "2204"]
[Result "1-0"]
[Round "01"]
[TimeControl "180+1"]
[Date "2022.06.07"]
[WhiteClock "0:02:01"]
[BlackClock "0:00:16"]

1. e4 {[%clk 0:02:59]}  e5 {[%clk 0:02:59]} 2. Nf3 {[%clk 0:02:59]}  Nc6 {[%clk 0:02:58]} 3. Bb5 {[%clk 0:02:59]}  a6 {[%clk 0:02:59]} 4. Ba4 {[%clk 0:03:00]}  Nf6 {[%clk 0:02:58]} 5. O-O {[%clk 0:03:00]}  Be7 {[%clk 0:02:58]} 6. Re1 {[%clk 0:02:59]}  b5 {[%clk 0:02:59]} 7. Bb3 {[%clk 0:02:59]}  d6 {[%clk 0:03:00]} 8. c3 {[%clk 0:02:59]}  O-O {[%clk 0:03:00]} 9. h3 {[%clk 0:03:00]}  Na5 {[%clk 0:03:00]} 10. Bc2 {[%clk 0:02:58]}  d5 {[%clk 0:03:01]} 11. d4 {[%clk 0:02:59]}  dxe4 {[%clk 0:02:58]} 12. Nxe5 {[%clk 0:02:56]}  c5 {[%clk 0:02:58]} 13. dxc5 {[%clk 0:02:51]}  Bxc5 {[%clk 0:02:42]} 14. Qxd8 {[%clk 0:02:32]}  Rxd8 {[%clk 0:02:40]} 15. Bg5 {[%clk 0:02:33]}  Bb7 {[%clk 0:02:18]} 16. b4 {[%clk 0:02:27]}  Bd6 {[%clk 0:02:17]} 17. Ng4 {[%clk 0:02:27]}  Nc4 {[%clk 0:02:04]} 18. Bxf6 {[%clk 0:02:23]}  gxf6 {[%clk 0:02:03]} 19. Bxe4 {[%clk 0:02:22]}  Bxe4 {[%clk 0:01:57]} 20. Nxf6+ {[%clk 0:02:22]}  Kg7 {[%clk 0:01:57]} 21. Nxe4 {[%clk 0:02:23]}  Be5 {[%clk 0:01:54]} 22. a4 {[%clk 0:02:22]}  bxa4 {[%clk 0:01:33]} 23. Rxa4 {[%clk 0:02:21]}  Rd5 {[%clk 0:01:08]} 24. Na3 {[%clk 0:02:12]}  Nb2 {[%clk 0:00:59]} 25. Ra5 {[%clk 0:02:10]}  Rxa5 {[%clk 0:00:59]} 26. bxa5 {[%clk 0:02:11]}  Rc8 {[%clk 0:00:49]} 27. Rb1 {[%clk 0:02:02]}  Nc4 {[%clk 0:00:44]} 28. Nc2 {[%clk 0:02:02]}  Nxa5 {[%clk 0:00:43]} 29. Ra1 {[%clk 0:01:59]}  Bxc3 {[%clk 0:00:35]} 30. Nxc3 {[%clk 0:01:59]}  Rxc3 {[%clk 0:00:36]} 31. Nb4 {[%clk 0:02:00]}  Nc6 {[%clk 0:00:33]} 32. Nd5 {[%clk 0:01:58]}  Rc5 {[%clk 0:00:30]} 33. Rxa6 {[%clk 0:01:58]}  Rxd5 {[%clk 0:00:30]} 34. Rxc6 {[%clk 0:01:59]}  h5 {[%clk 0:00:31]} 35. h4 {[%clk 0:01:58]}  Rd4 {[%clk 0:00:28]} 36. g3 {[%clk 0:01:58]}  Rd2 {[%clk 0:00:27]} 37. Kg2 {[%clk 0:01:59]}  Rb2 {[%clk 0:00:26]} 38. Rd6 {[%clk 0:01:58]}  Ra2 {[%clk 0:00:26]} 39. Kf3 {[%clk 0:01:59]}  Rb2 {[%clk 0:00:25]} 40. Ke3 {[%clk 0:01:58]}  Ra2 {[%clk 0:00:25]} 41. Rd4 {[%clk 0:01:58]}  Rb2 {[%clk 0:00:23]} 42. f3 {[%clk 0:01:58]}  Rb5 {[%clk 0:00:20]} 43. Kf4 {[%clk 0:01:59]}  Kg6 {[%clk 0:00:20]} 44. g4 {[%clk 0:01:59]}  f6 {[%clk 0:00:16]} 45. Rd6 {[%clk 0:01:59]}  Rb4+ {[%clk 0:00:16]} 46. Kg3 {[%clk 0:01:59]}  Rb5 {[%clk 0:00:16]} 47. g5 {[%clk 0:01:59]}  Rf5 {[%clk 0:00:16]} 48. Rxf6+ {[%clk 0:01:59]}  Rxf6 {[%clk 0:00:16]} 49. gxf6 {[%clk 0:02:00]}  Kf7 {[%clk 0:00:14]} 50. Kf4 {[%clk 0:01:56]}  Kxf6 {[%clk 0:00:14]} 51. Ke4 {[%clk 0:01:56]}  Ke6 {[%clk 0:00:14]} 52. f4 {[%clk 0:01:57]}  Kf6 {[%clk 0:00:15]} 53. f5 {[%clk 0:01:58]}  Kf7 {[%clk 0:00:15]} 54. Ke5 {[%clk 0:01:57]}  Ke7 {[%clk 0:00:15]} 55. f6+ {[%clk 0:01:58]}  Kf7 {[%clk 0:00:16]} 56. Kf5 {[%clk 0:01:59]}  Kf8 {[%clk 0:00:15]} 57. Kg6 {[%clk 0:01:59]}  Kg8 {[%clk 0:00:15]} 58. Kxh5 {[%clk 0:02:00]}  Kf7 {[%clk 0:00:16]} 59. Kg5 {[%clk 0:02:01]}  Kf8 {[%clk 0:00:16]} 60. Kg6 {[%clk 0:02:01]}  Kg8 {[%clk 0:00:16]} 61. f7+ {[%clk 0:02:01]} 1-0


[Site "https://www.chess.com"]

[Event "Titled Tuesday Blitz June 07 Early 2022"]
[White "Garagulya, Konstantin"]
[Black "Har-Zvi, Ronen"]
[WhiteFideId "4128931"]
[BlackFideId "2801485"]
[WhiteElo "2329"]
[BlackElo "2523"]
[Result "0-1"]
[Round "01"]
[TimeControl "180+1"]
[Date "2022.06.08"]
[WhiteClock "0:00:58"]
[BlackClock "0:01:31"]

1. d4 {[%clk 0:02:57]}  d5 {[%clk 0:02:59]} 2. Nf3 {[%clk 0:02:58]}  c6 {[%clk 0:02:59]} 3. c4 {[%clk 0:02:58]}  Nf6 {[%clk 0:02:59]} 4. Qc2 {[%clk 0:02:56]}  dxc4 {[%clk 0:02:58]} 5. Qxc4 {[%clk 0:02:56]}  Bg4 {[%clk 0:02:59]} 6. Nbd2 {[%clk 0:02:53]}  Nbd7 {[%clk 0:02:58]} 7. e3 {[%clk 0:02:53]}  e6 {[%clk 0:02:59]} 8. Bd3 {[%clk 0:02:52]}  Bd6 {[%clk 0:02:58]} 9. O-O {[%clk 0:02:52]}  O-O {[%clk 0:02:58]} 10. b3 {[%clk 0:02:50]}  e5 {[%clk 0:02:57]} 11. Bb2 {[%clk 0:02:47]}  Bxf3 {[%clk 0:02:52]} 12. gxf3 {[%clk 0:02:42]}  exd4 {[%clk 0:02:51]} 13. Bxd4 {[%clk 0:02:37]}  Ne5 {[%clk 0:02:50]} 14. Bxe5 {[%clk 0:02:36]}  Bxe5 {[%clk 0:02:50]} 15. Rad1 {[%clk 0:02:35]}  Nd5 {[%clk 0:02:44]} 16. f4 {[%clk 0:02:35]}  Bf6 {[%clk 0:02:40]} 17. Ne4 {[%clk 0:02:34]}  Qe7 {[%clk 0:02:39]} 18. Nxf6+ {[%clk 0:02:32]}  Qxf6 {[%clk 0:02:39]} 19. Be4 {[%clk 0:02:32]}  Nc3 {[%clk 0:02:38]} 20. Rd3 {[%clk 0:02:03]}  Nxa2 {[%clk 0:02:24]} 21. b4 {[%clk 0:01:54]}  Qe6 {[%clk 0:01:48]} 22. Qxe6 {[%clk 0:01:23]}  fxe6 {[%clk 0:01:48]} 23. Rb3 {[%clk 0:01:23]}  Rfd8 {[%clk 0:01:45]} 24. Ra1 {[%clk 0:01:09]}  Rd2 {[%clk 0:01:45]} 25. Bb1 {[%clk 0:01:08]}  Nc1 {[%clk 0:01:33]} 26. Be4 {[%clk 0:00:58]}  Nxb3 {[%clk 0:01:31]} 0-1


[Site "https://www.chess.com"]